[Event "CCT Chessable Masters Play-In 2025"]
[Site "Online"]
[Date "2025.02.17"]
[Round "4.19"]
[White "Vidit, Santosh Gujrathi"]
[Black "Fressinet, Laurent"]
[Result "0-1"]
[ECO "B31"]
[WhiteElo "2721"]
[BlackElo "2588"]
[PlyCount "84"]
[EventDate "2025.02.13"]
[EventType "swiss"]
[EventCountry "NET"]
[TimeControl "600"]
[WhiteClock "0:00:33"]
[BlackClock "0:01:29"]

1. e4 {[%emt 0:00:02]} c5 {[%emt 0:00:04]} 2. Nf3 {[%emt 0:00:01]} Nc6 {[%emt 0:00:02]} 3. Bb5 {[%emt 0:00:01]} g6 {[%emt 0:00:02]} 4. O-O {[%emt 0:00:04]} Bg7 {[%emt 0:00:01]} 5. c3 {[%emt 0:00:06]} e5 {[%emt 0:00:02]} 6. d4 {[%emt 0:00:06]} cxd4 {[%emt 0:00:02]} 7. cxd4 {[%emt 0:00:00]} exd4 {[%emt 0:00:01]} 8. Bf4 {[%emt 0:00:04]} a6 {[%emt 0:00:02]} 9. Qa4 {[%emt 0:00:07]} Nge7 {[%emt 0:00:11]} 10. Bd6 {[%emt 0:00:03]} b6 {[%emt 0:00:02]} 11. Bc4 {[%emt 0:00:32]} O-O {[%emt 0:00:18]} 12. Nbd2 {[%emt 0:00:09]} Bb7 {[%emt 0:00:16]} 13. Qa3 {[%emt 0:00:22]} b5 {[%emt 0:00:11]} 14. Bd5 {[%emt 0:00:17]} b4 {[%emt 0:00:20]} 15. Qb3 {[%emt 0:00:12]} a5 {[%emt 0:02:07]} 16. Ng5 {[%emt 0:01:01]} Qe8 {[%emt 0:01:05]} 17. Rfe1 {[%emt 0:00:30]} h6 {[%emt 0:00:04]} 18. Ngf3 {[%emt 0:00:03]} Qd8 {[%emt 0:00:11]} 19. a3 {[%emt 0:00:30]} a4 {[%emt 0:00:33]} 20. Qc4 {[%emt 0:00:03]} b3 {[%emt 0:01:02]} 21. Rad1 {[%emt 0:00:46]} Ra6 {[%emt 0:00:03]} 22. Qc5 {[%emt 0:00:32]} Ra5 {[%emt 0:00:09]} 23. Qc1 {[%emt 0:00:12]} Nxd5 {[%emt 0:00:07]} 24. exd5 {[%emt 0:00:02]} Rxd5 {[%emt 0:00:00]} 25. Bxf8 {[%emt 0:00:01]} Qxf8 {[%emt 0:00:00]} 26. Qc4 {[%emt 0:00:07]} Ra5 {[%emt 0:00:08]} 27. h4 {[%emt 0:00:23]} Ba6 {[%emt 0:00:02]} 28. Qc1 {[%emt 0:00:04]} Rc5 {[%emt 0:00:02]} 29. Qb1 {[%emt 0:00:01]} Rc2 {[%emt 0:00:01]} 30. h5 {[%emt 0:00:07]} g5 {[%emt 0:00:05]} 31. Ne4 {[%emt 0:00:04]} d3 {[%emt 0:00:03]} 32. Rd2 {[%emt 0:00:04]} d5 {[%emt 0:00:26]} 33. Ng3 {[%emt 0:00:20]} Nd4 {[%emt 0:00:04]} 34. Nxd4 {[%emt 0:00:31]} Rxd2 {[%emt 0:00:04]} 35. Qc1 {[%emt 0:00:34]} Rc2 {[%emt 0:00:14]} 36. Nxc2 {[%emt 0:00:03]} bxc2 {[%emt 0:00:01]} 37. Nf5 {[%emt 0:00:04]} Bf6 {[%emt 0:00:02]} 38. Qe3 {[%emt 0:00:53]} Qc8 {[%emt 0:00:02]} 39. Nxh6+ {[%emt 0:00:04]} Kg7 {[%emt 0:00:06]} 40. Nxf7 {[%emt 0:00:18]} Kxf7 {[%emt 0:00:01]} 41. Qa7+ {[%emt 0:00:01]} Qb7 {[%emt 0:00:07]} 42. Qc5 {[%emt 0:00:03]} d2 {[%emt 0:00:08]} 0-1

[Event "CCT Chessable Masters Play-In 2025"]
[Site "Online"]
[Date "2025.02.17"]
[Round "4.20"]
[White "Grischuk, Alexander"]
[Black "Ponomariov, Ruslan"]
[Result "1/2-1/2"]
[ECO "C01"]
[WhiteElo "2687"]
[BlackElo "2628"]
[PlyCount "153"]
[EventDate "2025.02.13"]
[EventType "swiss"]
[EventCountry "NET"]
[TimeControl "600"]
[WhiteClock "0:00:21"]
[BlackClock "0:00:31"]

1. e4 {[%emt 0:00:37]} e6 {[%emt 0:00:05]} 2. d4 {[%emt 0:00:02]} d5 {[%emt 0:00:01]} 3. Nc3 {[%emt 0:00:01]} Bb4 {[%emt 0:00:02]} 4. exd5 {[%emt 0:00:02]} exd5 {[%emt 0:02:42]} 5. Bd3 {[%emt 0:00:02]} Nc6 {[%emt 0:00:02]} 6. Nf3 {[%emt 0:00:04]} Nge7 {[%emt 0:00:10]} 7. O-O {[%emt 0:00:03]} Bg4 {[%emt 0:00:44]} 8. h3 {[%emt 0:00:52]} Bh5 {[%emt 0:00:01]} 9. a3 {[%emt 0:00:18]} Bxc3 {[%emt 0:00:58]} 10. bxc3 {[%emt 0:00:00]} Bg6 {[%emt 0:00:04]} 11. Rb1 {[%emt 0:02:14]} b6 {[%emt 0:00:11]} 12. Bb5 {[%emt 0:00:40]} O-O {[%emt 0:00:05]} 13. Bg5 {[%emt 0:00:01]} f6 {[%emt 0:00:03]} 14. Bf4 {[%emt 0:00:05]} Na5 {[%emt 0:00:09]} 15. Nd2 {[%emt 0:00:21]} Nf5 {[%emt 0:00:06]} 16. Re1 {[%emt 0:00:05]} Nd6 {[%emt 0:00:04]} 17. Bf1 {[%emt 0:00:18]} Qd7 {[%emt 0:00:05]} 18. h4 {[%emt 0:00:18]} Rfe8 {[%emt 0:00:32]} 19. Rxe8+ {[%emt 0:00:02]} Rxe8 {[%emt 0:00:02]} 20. h5 {[%emt 0:00:01]} Bf5 {[%emt 0:00:01]} 21. Qf3 {[%emt 0:00:09]} Ne4 {[%emt 0:00:22]} 22. Nxe4 {[%emt 0:00:37]} Bxe4 {[%emt 0:00:01]} 23. Qg3 {[%emt 0:00:00]} c6 {[%emt 0:00:12]} 24. Re1 {[%emt 0:00:27]} Bxc2 {[%emt 0:00:03]} 25. Rxe8+ {[%emt 0:00:01]} Qxe8 {[%emt 0:00:00]} 26. Bh6 {[%emt 0:00:01]} Qd7 {[%emt 0:00:26]} 27. Qb8+ {[%emt 0:00:06]} Kf7 {[%emt 0:00:01]} 28. Bf4 {[%emt 0:00:03]} Nc4 {[%emt 0:00:03]} 29. h6 {[%emt 0:00:21]} g5 {[%emt 0:00:06]} 30. Bc7 {[%emt 0:00:01]} Kg6 {[%emt 0:01:01]} 31. Qxa7 {[%emt 0:00:03]} b5 {[%emt 0:00:07]} 32. Qb8 {[%emt 0:00:16]} Kxh6 {[%emt 0:00:01]} 33. Qf8+ {[%emt 0:00:06]} Kg6 {[%emt 0:00:02]} 34. Bd8 {[%emt 0:00:01]} Qf7 {[%emt 0:00:03]} 35. Qc5 {[%emt 0:00:01]} Qe8 {[%emt 0:00:03]} 36. Be7 {[%emt 0:00:09]} Kf7 {[%emt 0:00:05]} 37. Bd6 {[%emt 0:00:09]} Nd2 {[%emt 0:00:04]} 38. Qa7+ {[%emt 0:00:06]} Kg6 {[%emt 0:00:04]} 39. Be7 {[%emt 0:00:04]} Bf5 {[%emt 0:00:13]} 40. Qc7 {[%emt 0:00:13]} Qd7 {[%emt 0:00:04]} 41. Qxd7 {[%emt 0:00:04]} Bxd7 {[%emt 0:00:01]} 42. f3 {[%emt 0:00:01]} Kf7 {[%emt 0:00:03]} 43. Bb4 {[%emt 0:00:02]} Nxf1 {[%emt 0:00:04]} 44. Kxf1 {[%emt 0:00:00]} h5 {[%emt 0:00:00]} 45. Kf2 {[%emt 0:00:02]} h4 {[%emt 0:00:01]} 46. Ba5 {[%emt 0:00:01]} Bf5 {[%emt 0:00:01]} 47. Bd8 {[%emt 0:00:01]} Bd3 {[%emt 0:00:00]} 48. Ke3 {[%emt 0:00:01]} Bc4 {[%emt 0:00:00]} 49. Kf2 {[%emt 0:00:01]} Kg6 {[%emt 0:00:01]} 50. Ke3 {[%emt 0:00:01]} f5 {[%emt 0:00:00]} 51. Kf2 {[%emt 0:00:00]} f4 {[%emt 0:00:00]} 52. Be7 {[%emt 0:00:02]} Kh5 {[%emt 0:00:01]} 53. Bd8 {[%emt 0:00:01]} g4 {[%emt 0:00:00]} 54. fxg4+ {[%emt 0:00:01]} Kxg4 {[%emt 0:00:01]} 55. Be7 {[%emt 0:00:01]} Bd3 {[%emt 0:00:01]} 56. Bd8 {[%emt 0:00:01]} Be4 {[%emt 0:00:00]} 57. Be7 {[%emt 0:00:01]} h3 {[%emt 0:00:00]} 58. gxh3+ {[%emt 0:00:01]} Kxh3 {[%emt 0:00:01]} 59. Bd6 {[%emt 0:00:00]} Kg4 {[%emt 0:00:00]} 60. Be5 {[%emt 0:00:01]} Kf5 {[%emt 0:00:01]} 61. Bd6 {[%emt 0:00:00]} Bc2 {[%emt 0:00:00]} 62. Bc7 {[%emt 0:00:01]} Ke4 {[%emt 0:00:01]} 63. Bd6 {[%emt 0:00:04]} Bd1 {[%emt 0:00:01]} 64. Bc5 {[%emt 0:00:01]} Bh5 {[%emt 0:00:00]} 65. Bb4 {[%emt 0:00:01]} f3 {[%emt 0:00:00]} 66. Bc5 {[%emt 0:00:01]} Kd3 {[%emt 0:00:00]} 67. Bb4 {[%emt 0:00:00]} Kc4 {[%emt 0:00:01]} 68. Ba5 {[%emt 0:00:01]} Kb3 {[%emt 0:00:01]} 69. Bb4 {[%emt 0:00:01]} Kb2 {[%emt 0:00:00]} 70. Ke3 {[%emt 0:00:00]} Kc2 {[%emt 0:00:00]} 71. Kf2 {[%emt 0:00:01]} Kb3 {[%emt 0:00:00]} 72. Ke3 {[%emt 0:00:02]} Kc2 {[%emt 0:00:00]} 73. Kf2 {[%emt 0:00:00]} Kb2 {[%emt 0:00:00]} 74. Ke3 {[%emt 0:00:02]} Kb3 {[%emt 0:00:00]} 75. Kf2 {[%emt 0:00:00]} Ka4 {[%emt 0:00:00]} 76. Ke3 {[%emt 0:00:01]} Kb3 {[%emt 0:00:01]} 77. Kf2 {[%emt 0:00:00]} 1/2-1/2

[Event "CCT Chessable Masters Play-In 2025"]
[Site "Online"]
[Date "2025.02.17"]
[Round "4.21"]
[White "Le, Tuan Minh"]
[Black "Nguyen, Ngoc Truong Son"]
[Result "0-1"]
[ECO "D13"]
[WhiteElo "2598"]
[BlackElo "2632"]
[PlyCount "52"]
[EventDate "2025.02.13"]
[EventType "swiss"]
[EventCountry "NET"]
[TimeControl "600"]
[WhiteClock "0:03:58"]
[BlackClock "0:03:14"]

1. d4 {[%emt 0:00:07]} Nf6 {[%emt 0:00:05]} 2. Nf3 {[%emt 0:00:07]} d5 {[%emt 0:00:03]} 3. Bf4 {[%emt 0:00:01]} c5 {[%emt 0:00:11]} 4. c3 {[%emt 0:00:01]} cxd4 {[%emt 0:00:05]} 5. cxd4 {[%emt 0:00:00]} e6 {[%emt 0:00:05]} 6. e3 {[%emt 0:00:01]} Bd6 {[%emt 0:00:03]} 7. Bg3 {[%emt 0:00:03]} O-O {[%emt 0:00:07]} 8. Nc3 {[%emt 0:00:01]} b6 {[%emt 0:00:15]} 9. Rc1 {[%emt 0:00:03]} Bb7 {[%emt 0:00:05]} 10. Bd3 {[%emt 0:00:01]} Nc6 {[%emt 0:00:19]} 11. a3 {[%emt 0:00:17]} h6 {[%emt 0:00:07]} 12. Qe2 {[%emt 0:00:26]} Rc8 {[%emt 0:00:08]} 13. O-O {[%emt 0:00:06]} Bxg3 {[%emt 0:00:08]} 14. hxg3 {[%emt 0:00:00]} Qd6 {[%emt 0:00:00]} 15. Rc2 {[%emt 0:00:10]} Nd7 {[%emt 0:00:56]} 16. Rfc1 {[%emt 0:00:05]} Na5 {[%emt 0:00:44]} 17. Nb5 {[%emt 0:00:10]} Qb8 {[%emt 0:00:04]} 18. g4 {[%emt 0:01:33]} g6 {[%emt 0:01:37]} 19. Rxc8 {[%emt 0:00:35]} Rxc8 {[%emt 0:00:04]} 20. Rxc8+ {[%emt 0:00:01]} Bxc8 {[%emt 0:00:06]} 21. Qc2 {[%emt 0:00:01]} Ba6 {[%emt 0:00:09]} 22. g3 {[%emt 0:00:23]} Kg7 {[%emt 0:00:13]} 23. a4 {[%emt 0:00:12]} Nb7 {[%emt 0:00:36]} 24. Qc6 {[%emt 0:00:08]} Qd8 {[%emt 0:00:07]} 25. Kg2 {[%emt 0:01:05]} Nb8 {[%emt 0:00:09]} 26. Qd6 {[%emt 0:00:25]} Nxd6 {[%emt 0:00:20]} 0-1

[Event "CCT Chessable Masters Play-In 2025"]
[Site "Online"]
[Date "2025.02.17"]
[Round "4.22"]
[White "Niemann, Hans Moke"]
[Black "Alonso Rosell, Alvar"]
[Result "1-0"]
[ECO "C55"]
[WhiteElo "2734"]
[BlackElo "2535"]
[PlyCount "107"]
[EventDate "2025.02.13"]
[EventType "swiss"]
[EventCountry "NET"]
[TimeControl "600"]
[WhiteClock "0:03:10"]
[BlackClock "0:00:02"]

1. e4 {[%emt 0:00:05]} e5 {[%emt 0:00:01]} 2. Nf3 {[%emt 0:00:02]} Nc6 {[%emt 0:00:01]} 3. Bc4 {[%emt 0:00:01]} Nf6 {[%emt 0:00:01]} 4. d3 {[%emt 0:00:00]} h6 {[%emt 0:00:01]} 5. c3 {[%emt 0:00:08]} d6 {[%emt 0:00:02]} 6. a4 {[%emt 0:00:03]} g6 {[%emt 0:00:01]} 7. Qb3 {[%emt 0:00:04]} Qe7 {[%emt 0:00:07]} 8. a5 {[%emt 0:00:01]} a6 {[%emt 0:00:16]} 9. O-O {[%emt 0:00:03]} Bg7 {[%emt 0:00:01]} 10. Nbd2 {[%emt 0:00:01]} O-O {[%emt 0:00:06]} 11. Re1 {[%emt 0:00:02]} Nd7 {[%emt 0:00:07]} 12. Nf1 {[%emt 0:00:15]} Kh8 {[%emt 0:00:27]} 13. Ng3 {[%emt 0:00:06]} b5 {[%emt 0:00:07]} 14. axb6 {[%emt 0:00:06]} Nxb6 {[%emt 0:00:01]} 15. Be3 {[%emt 0:00:31]} Bg4 {[%emt 0:00:26]} 16. Bxb6 {[%emt 0:00:25]} Rfb8 {[%emt 0:00:04]} 17. Nd2 {[%emt 0:00:09]} Rxb6 {[%emt 0:00:05]} 18. Qa2 {[%emt 0:00:01]} Nd8 {[%emt 0:00:34]} 19. b4 {[%emt 0:00:07]} h5 {[%emt 0:00:05]} 20. Ngf1 {[%emt 0:00:03]} c6 {[%emt 0:01:00]} 21. Ne3 {[%emt 0:00:02]} Be6 {[%emt 0:00:13]} 22. Bxe6 {[%emt 0:00:01]} Nxe6 {[%emt 0:00:01]} 23. g3 {[%emt 0:00:13]} Bh6 {[%emt 0:00:05]} 24. Qa4 {[%emt 0:00:10]} Bxe3 {[%emt 0:00:07]} 25. Rxe3 {[%emt 0:00:01]} h4 {[%emt 0:00:07]} 26. Nc4 {[%emt 0:00:02]} Rb5 {[%emt 0:00:02]} 27. Na3 {[%emt 0:00:20]} Rb6 {[%emt 0:00:08]} 28. Nc4 {[%emt 0:00:02]} Rb5 {[%emt 0:00:01]} 29. Qd1 {[%emt 0:00:01]} Kg7 {[%emt 0:00:04]} 30. Qg4 {[%emt 0:00:03]} c5 {[%emt 0:00:48]} 31. bxc5 {[%emt 0:00:10]} Rxc5 {[%emt 0:00:02]} 32. Nb6 {[%emt 0:00:07]} Rh8 {[%emt 0:00:09]} 33. Nd5 {[%emt 0:00:03]} Qb7 {[%emt 0:00:15]} 34. Qf3 {[%emt 0:00:01]} Rxd5 {[%emt 0:00:55]} 35. exd5 {[%emt 0:00:01]} Ng5 {[%emt 0:00:01]} 36. Qg4 {[%emt 0:00:01]} Qb2 {[%emt 0:00:14]} 37. Rf1 {[%emt 0:00:12]} Rh5 {[%emt 0:00:03]} 38. Qb4 {[%emt 0:00:44]} Qd2 {[%emt 0:00:36]} 39. g4 {[%emt 0:00:01]} Rh8 {[%emt 0:00:32]} 40. Qxd6 {[%emt 0:00:02]} Qxc3 {[%emt 0:00:10]} 41. f4 {[%emt 0:00:13]} exf4 {[%emt 0:00:38]} 42. Qxf4 {[%emt 0:00:00]} f6 {[%emt 0:00:12]} 43. d6 {[%emt 0:00:38]} Rf8 {[%emt 0:00:13]} 44. d7 {[%emt 0:00:04]} Qc5 {[%emt 0:00:01]} 45. d4 {[%emt 0:00:33]} Qb6 {[%emt 0:00:04]} 46. Re7+ {[%emt 0:00:05]} Kg8 {[%emt 0:00:10]} 47. Qe3 {[%emt 0:00:03]} Qc6 {[%emt 0:00:09]} 48. h3 {[%emt 0:00:08]} Qd6 {[%emt 0:00:11]} 49. Re1 {[%emt 0:00:05]} Qd5 {[%emt 0:00:05]} 50. Re2 {[%emt 0:00:11]} Nf3+ {[%emt 0:00:02]} 51. Kf2 {[%emt 0:00:01]} Nxd4 {[%emt 0:00:02]} 52. Re8 {[%emt 0:00:13]} Qxd7 {[%emt 0:00:02]} 53. Rxf8+ {[%emt 0:00:05]} Kxf8 {[%emt 0:00:03]} 54. Qh6+ {[%emt 0:00:01]} 1-0

[Event "CCT Chessable Masters Play-In 2025"]
[Site "Online"]
[Date "2025.02.17"]
[Round "4.23"]
[White "Robson, Ray"]
[Black "Sjugirov, Sanan"]
[Result "0-1"]
[ECO "D36"]
[WhiteElo "2689"]
[BlackElo "2643"]
[PlyCount "120"]
[EventDate "2025.02.13"]
[EventType "swiss"]
[EventCountry "NET"]
[TimeControl "600"]
[WhiteClock "0:00:13"]
[BlackClock "0:01:50"]

1. d4 {[%emt 0:00:39]} Nf6 {[%emt 0:00:03]} 2. c4 {[%emt 0:00:02]} e6 {[%emt 0:00:01]} 3. Nc3 {[%emt 0:00:00]} d5 {[%emt 0:00:08]} 4. cxd5 {[%emt 0:00:01]} exd5 {[%emt 0:00:00]} 5. Bg5 {[%emt 0:00:01]} c6 {[%emt 0:00:03]} 6. Qc2 {[%emt 0:00:01]} Be7 {[%emt 0:00:02]} 7. e3 {[%emt 0:00:01]} Nbd7 {[%emt 0:00:09]} 8. Bd3 {[%emt 0:00:01]} O-O {[%emt 0:00:02]} 9. Nge2 {[%emt 0:00:02]} Re8 {[%emt 0:00:17]} 10. O-O {[%emt 0:00:02]} h6 {[%emt 0:00:03]} 11. Bh4 {[%emt 0:00:01]} Nh5 {[%emt 0:00:08]} 12. Bxe7 {[%emt 0:00:05]} Qxe7 {[%emt 0:00:01]} 13. Rae1 {[%emt 0:00:08]} Nf8 {[%emt 0:00:09]} 14. Nc1 {[%emt 0:00:16]} Nf6 {[%emt 0:00:06]} 15. f3 {[%emt 0:00:08]} Ne6 {[%emt 0:00:05]} 16. Nb3 {[%emt 0:00:30]} a5 {[%emt 0:00:07]} 17. Na4 {[%emt 0:00:17]} Qb4 {[%emt 0:00:13]} 18. Nbc5 {[%emt 0:00:41]} Nxc5 {[%emt 0:00:34]} 19. Nxc5 {[%emt 0:00:04]} a4 {[%emt 0:00:13]} 20. a3 {[%emt 0:00:27]} Qa5 {[%emt 0:00:02]} 21. b4 {[%emt 0:00:47]} axb3 {[%emt 0:00:05]} 22. Nxb3 {[%emt 0:00:01]} Qc7 {[%emt 0:00:18]} 23. Qb2 {[%emt 0:00:41]} b6 {[%emt 0:00:24]} 24. Nd2 {[%emt 0:00:15]} c5 {[%emt 0:00:07]} 25. Nb1 {[%emt 0:00:10]} Bd7 {[%emt 0:00:38]} 26. Nc3 {[%emt 0:00:14]} cxd4 {[%emt 0:00:01]} 27. exd4 {[%emt 0:00:01]} Qf4 {[%emt 0:00:00]} 28. Rxe8+ {[%emt 0:00:44]} Bxe8 {[%emt 0:00:00]} 29. Nd1 {[%emt 0:00:28]} Qd6 {[%emt 0:00:02]} 30. Qb4 {[%emt 0:00:15]} Qxb4 {[%emt 0:00:07]} 31. axb4 {[%emt 0:00:00]} Ra4 {[%emt 0:00:01]} 32. Kf2 {[%emt 0:00:24]} Rxb4 {[%emt 0:00:04]} 33. Ke3 {[%emt 0:00:01]} Rb3 {[%emt 0:00:07]} 34. Nf2 {[%emt 0:00:00]} Bb5 {[%emt 0:00:20]} 35. Ra1 {[%emt 0:00:05]} g6 {[%emt 0:00:01]} 36. Ra7 {[%emt 0:00:06]} Bc4 {[%emt 0:00:08]} 37. g4 {[%emt 0:00:11]} b5 {[%emt 0:00:06]} 38. h4 {[%emt 0:00:03]} Kg7 {[%emt 0:00:06]} 39. Rb7 {[%emt 0:00:11]} Ra3 {[%emt 0:00:12]} 40. Kd2 {[%emt 0:00:08]} Ne8 {[%emt 0:00:19]} 41. Rb6 {[%emt 0:00:12]} Nc7 {[%emt 0:00:09]} 42. f4 {[%emt 0:00:01]} Ne6 {[%emt 0:00:24]} 43. f5 {[%emt 0:00:00]} Nxd4 {[%emt 0:00:20]} 44. f6+ {[%emt 0:00:24]} Kh7 {[%emt 0:00:01]} 45. Rb7 {[%emt 0:00:01]} Nf3+ {[%emt 0:00:20]} 46. Ke2 {[%emt 0:00:16]} d4 {[%emt 0:00:47]} 47. Bxc4 {[%emt 0:00:13]} bxc4 {[%emt 0:00:00]} 48. Rxf7+ {[%emt 0:00:01]} Kg8 {[%emt 0:00:00]} 49. Rg7+ {[%emt 0:00:03]} Kf8 {[%emt 0:00:01]} 50. Rxg6 {[%emt 0:00:09]} Re3+ {[%emt 0:00:01]} 51. Kf1 {[%emt 0:00:01]} c3 {[%emt 0:00:04]} 52. Rxh6 {[%emt 0:00:05]} c2 {[%emt 0:00:11]} 53. Rh8+ {[%emt 0:00:01]} Kf7 {[%emt 0:00:01]} 54. Rc8 {[%emt 0:00:00]} Re1+ {[%emt 0:00:12]} 55. Kg2 {[%emt 0:00:01]} Nxh4+ {[%emt 0:00:01]} 56. Kg3 {[%emt 0:00:00]} c1=Q {[%emt 0:00:00]} 57. Rxc1 {[%emt 0:00:00]} Rxc1 {[%emt 0:00:00]} 58. Kxh4 {[%emt 0:00:00]} Kxf6 {[%emt 0:00:02]} 59. Ne4+ {[%emt 0:00:01]} Ke5 {[%emt 0:00:02]} 60. Nd2 {[%emt 0:00:06]} Kf4 {[%emt 0:00:02]} 0-1

[Event "CCT Chessable Masters Play-In 2025"]
[Site "Online"]
[Date "2025.02.17"]
[Round "4.24"]
[White "Kravtsiv, Martyn"]
[Black "Bortnyk, Olexandr"]
[Result "0-1"]
[ECO "B04"]
[WhiteElo "2598"]
[BlackElo "2601"]
[PlyCount "108"]
[EventDate "2025.02.13"]
[EventType "swiss"]
[EventCountry "NET"]
[TimeControl "600"]
[WhiteClock "0:00:03"]
[BlackClock "0:01:20"]

1. e4 {[%emt 0:00:01]} Nf6 {[%emt 0:00:07]} 2. e5 {[%emt 0:00:07]} Nd5 {[%emt 0:00:01]} 3. d4 {[%emt 0:00:04]} d6 {[%emt 0:00:01]} 4. Nf3 {[%emt 0:00:01]} dxe5 {[%emt 0:00:00]} 5. Nxe5 {[%emt 0:00:02]} c6 {[%emt 0:00:01]} 6. Be2 {[%emt 0:00:09]} Bf5 {[%emt 0:00:01]} 7. O-O {[%emt 0:00:06]} Nd7 {[%emt 0:00:01]} 8. Nf3 {[%emt 0:00:05]} e6 {[%emt 0:00:01]} 9. Nbd2 {[%emt 0:00:40]} Nb4 {[%emt 0:00:27]} 10. Ne1 {[%emt 0:00:04]} Bd6 {[%emt 0:00:06]} 11. Nc4 {[%emt 0:00:03]} Bc7 {[%emt 0:00:09]} 12. Ne3 {[%emt 0:00:15]} Bg6 {[%emt 0:00:03]} 13. c4 {[%emt 0:00:06]} c5 {[%emt 0:00:42]} 14. d5 {[%emt 0:00:03]} exd5 {[%emt 0:00:12]} 15. cxd5 {[%emt 0:00:01]} Nb6 {[%emt 0:00:02]} 16. f4 {[%emt 0:02:31]} Be4 {[%emt 0:00:29]} 17. Bb5+ {[%emt 0:00:38]} Kf8 {[%emt 0:00:03]} 18. Nd3 {[%emt 0:00:02]} Nxd3 {[%emt 0:00:35]} 19. Bxd3 {[%emt 0:00:04]} Bxd5 {[%emt 0:00:00]} 20. Qc2 {[%emt 0:00:11]} c4 {[%emt 0:00:30]} 21. Be4 {[%emt 0:00:31]} Bxe4 {[%emt 0:00:41]} 22. Qxe4 {[%emt 0:00:00]} Qe7 {[%emt 0:00:15]} 23. Qxb7 {[%emt 0:00:06]} Bd6 {[%emt 0:00:00]} 24. Qf3 {[%emt 0:00:06]} Re8 {[%emt 0:00:06]} 25. Bd2 {[%emt 0:00:17]} Qe4 {[%emt 0:00:08]} 26. Rae1 {[%emt 0:00:07]} Qxf3 {[%emt 0:00:04]} 27. Rxf3 {[%emt 0:00:00]} Bc5 {[%emt 0:00:09]} 28. Kf1 {[%emt 0:00:02]} f6 {[%emt 0:00:02]} 29. Rc1 {[%emt 0:00:22]} Re4 {[%emt 0:00:14]} 30. b3 {[%emt 0:00:05]} Ba3 {[%emt 0:00:06]} 31. Rc2 {[%emt 0:00:05]} cxb3 {[%emt 0:00:40]} 32. axb3 {[%emt 0:00:00]} Bd6 {[%emt 0:00:09]} 33. Nf5 {[%emt 0:00:03]} Bb8 {[%emt 0:00:02]} 34. Ng3 {[%emt 0:00:20]} Rd4 {[%emt 0:00:15]} 35. Be3 {[%emt 0:00:02]} Rd8 {[%emt 0:00:03]} 36. Bxb6 {[%emt 0:00:03]} axb6 {[%emt 0:00:00]} 37. Rc6 {[%emt 0:00:03]} Kf7 {[%emt 0:00:22]} 38. Ne2 {[%emt 0:00:15]} Rd1+ {[%emt 0:00:17]} 39. Kf2 {[%emt 0:00:01]} Rd2 {[%emt 0:00:00]} 40. Ke1 {[%emt 0:00:11]} Rhd8 {[%emt 0:00:01]} 41. Re3 {[%emt 0:00:10]} Rd1+ {[%emt 0:00:02]} 42. Kf2 {[%emt 0:00:01]} Bd6 {[%emt 0:00:05]} 43. Kg3 {[%emt 0:00:10]} Bc5 {[%emt 0:00:19]} 44. Rf3 {[%emt 0:00:02]} R8d2 {[%emt 0:00:09]} 45. Rc7+ {[%emt 0:00:11]} Kf8 {[%emt 0:00:02]} 46. b4 {[%emt 0:00:19]} Bd6 {[%emt 0:00:08]} 47. Rc8+ {[%emt 0:00:03]} Kf7 {[%emt 0:00:00]} 48. Rf2 {[%emt 0:00:24]} g5 {[%emt 0:00:05]} 49. Kg4 {[%emt 0:00:06]} Re1 {[%emt 0:00:09]} 50. Kf3 {[%emt 0:00:17]} g4+ {[%emt 0:00:03]} 51. Ke3 {[%emt 0:00:03]} Bxb4 {[%emt 0:00:06]} 52. f5 {[%emt 0:00:02]} Rd7 {[%emt 0:00:23]} 53. Kf4 {[%emt 0:00:09]} h5 {[%emt 0:00:01]} 54. h3 {[%emt 0:00:08]} Bd6+ {[%emt 0:00:03]} 0-1

[Event "CCT Chessable Masters Play-In 2025"]
[Site "Online"]
[Date "2025.02.17"]
[Round "4.25"]
[White "Ma, Qun"]
[Black "Daneshvar, Bardiya"]
[Result "1-0"]
[ECO "B94"]
[WhiteElo "2645"]
[BlackElo "2604"]
[PlyCount "85"]
[EventDate "2025.02.13"]
[EventType "swiss"]
[EventCountry "NET"]
[TimeControl "600"]
[WhiteClock "0:00:34"]
[BlackClock "0:00:02"]

1. e4 {[%emt 0:00:02]} c5 {[%emt 0:00:02]} 2. Nf3 {[%emt 0:00:01]} d6 {[%emt 0:00:00]} 3. d4 {[%emt 0:00:01]} cxd4 {[%emt 0:00:00]} 4. Nxd4 {[%emt 0:00:00]} Nf6 {[%emt 0:00:00]} 5. Nc3 {[%emt 0:00:01]} a6 {[%emt 0:00:01]} 6. Bg5 {[%emt 0:00:01]} Nbd7 {[%emt 0:00:05]} 7. Bc4 {[%emt 0:00:03]} Qb6 {[%emt 0:00:13]} 8. Bb3 {[%emt 0:00:05]} e6 {[%emt 0:00:03]} 9. f3 {[%emt 0:00:13]} Be7 {[%emt 0:00:05]} 10. Qd2 {[%emt 0:00:08]} Nc5 {[%emt 0:00:05]} 11. O-O-O {[%emt 0:00:09]} Qc7 {[%emt 0:00:02]} 12. Kb1 {[%emt 0:00:02]} Bd7 {[%emt 0:00:20]} 13. g4 {[%emt 0:00:06]} b5 {[%emt 0:00:05]} 14. a3 {[%emt 0:00:01]} O-O {[%emt 0:00:05]} 15. Be3 {[%emt 0:01:07]} Rfb8 {[%emt 0:00:52]} 16. g5 {[%emt 0:00:01]} Ne8 {[%emt 0:00:03]} 17. g6 {[%emt 0:00:57]} a5 {[%emt 0:01:33]} 18. Nf5 {[%emt 0:00:16]} Bf8 {[%emt 0:00:27]} 19. gxh7+ {[%emt 0:03:09]} Kh8 {[%emt 0:00:15]} 20. Nh6 {[%emt 0:00:00]} gxh6 {[%emt 0:00:27]} 21. Bxh6 {[%emt 0:00:18]} Ng7 {[%emt 0:01:33]} 22. Rhg1 {[%emt 0:00:07]} Qd8 {[%emt 0:01:01]} 23. Qf4 {[%emt 0:01:04]} f6 {[%emt 0:00:50]} 24. Rg6 {[%emt 0:00:27]} Nxb3 {[%emt 0:00:39]} 25. Rdg1 {[%emt 0:00:03]} Qe7 {[%emt 0:00:09]} 26. cxb3 {[%emt 0:00:06]} b4 {[%emt 0:00:35]} 27. Rxg7 {[%emt 0:00:09]} Bxg7 {[%emt 0:00:02]} 28. Bxg7+ {[%emt 0:00:00]} Qxg7 {[%emt 0:00:01]} 29. Rxg7 {[%emt 0:00:01]} Kxg7 {[%emt 0:00:01]} 30. Qxd6 {[%emt 0:00:02]} bxc3 {[%emt 0:00:03]} 31. Qxd7+ {[%emt 0:00:00]} Kh8 {[%emt 0:00:00]} 32. Qxe6 {[%emt 0:00:03]} cxb2 {[%emt 0:00:04]} 33. Qxf6+ {[%emt 0:00:03]} Kxh7 {[%emt 0:00:01]} 34. Kxb2 {[%emt 0:00:00]} a4 {[%emt 0:00:00]} 35. b4 {[%emt 0:00:03]} Rd8 {[%emt 0:00:01]} 36. Qf7+ {[%emt 0:00:27]} Kh8 {[%emt 0:00:02]} 37. Qh5+ {[%emt 0:00:01]} Kg8 {[%emt 0:00:01]} 38. Qb5 {[%emt 0:00:02]} Rd2+ {[%emt 0:00:07]} 39. Kc3 {[%emt 0:00:03]} Rdd8 {[%emt 0:00:00]} 40. Qg5+ {[%emt 0:00:02]} Kh8 {[%emt 0:00:01]} 41. Qe5+ {[%emt 0:00:01]} Kg8 {[%emt 0:00:00]} 42. b5 {[%emt 0:00:01]} Rac8+ {[%emt 0:00:04]} 43. Kb4 {[%emt 0:00:00]} 1-0